{"text_format":"3","workbook":"xlsx","n_sheets":5,"sheets":["Landfill Service","Recycling Service","Composting Service","E-Scrap Service","Document Destruction"],"read":"whole","date_system":"1900"}

{"sheet":"Landfill Service","index":0,"n_rows":246,"n_cols":13,"rows_kept":246,"merged":[[0,2,0,3],[2,1,2,9],[5,1,5,12],[40,5,40,9],[42,5,42,9],[44,5,44,9],[46,1,46,10],[88,5,88,9],[90,5,90,9],[92,5,92,9],[94,1,94,10],[110,5,110,9],[112,5,112,9],[114,5,114,9],[117,1,117,10],[132,4,132,9],[134,4,134,9],[136,4,136,9],[138,1,138,10],[171,5,171,9],[173,5,173,9],[175,5,175,9],[177,1,177,10],[190,5,190,9],[192,5,192,9],[194,5,194,9],[196,5,196,9],[198,5,198,9],[200,5,200,9],[201,6,201,9],[202,1,202,4],[205,1,205,2],[207,1,207,2],[209,1,209,2],[211,1,211,2],[238,1,238,2]]}
[null,"VENDOR NAME:"]
[]
[null,"Landfill Waste Hauling"]
[null,"Location Name","Address","City","Zip","2 yd","4 yd","6 yd","8 yd","Service per week","Monthly Cost per Service","Summer Service per week","Monthly Cost per Service"]
[]
[null,"Parkway School District"]
[null,"BARRETTS ELEMENTARY","1780 CARMAN RD","MANCHESTER","63021-7169",{"$nulls":3},1,1,0,1,0]
[null,"BELLERIVE ELEMENTARY","620 RUE DE FLEUR DR","CREVE COEUR","63141-7364",{"$nulls":3},1,1,0,1,0]
[null,"CARMAN TRAILS ELEMENTARY","555 S WEIDMAN RD","MANCHESTER","63021-5729",{"$nulls":3},1,2,0,1,0]
[null,"CENTRAL HIGH","369 N WOODS MILL RD","CHESTERFIELD","63017-3329",null,null,1,2,3,0,1,0]
[null,"CENTRAL MIDDLE","471 N WOODS MILL RD","CHESTERFIELD","63017-3327",{"$nulls":3},2,2,0,1,0]
[null,"CLAYMONT ELEMENTARY","405 COUNTRY CLUB DR","BALLWIN","63011-2547",{"$nulls":3},1,2,0,1,0]
[null,"CRAIG ELEMENTARY","1492 CRAIG RD","SAINT LOUIS","63146-4842",{"$nulls":3},1,2,0,1,0]
[null,"EARLY CHILDHOOD CENTER","14605 CLAYTON RD","BALLWIN","63011-2656",null,null,1,null,2,0,1,0]
[null,"FERN RIDGE HIGH","13157 N OLIVE SPUR RD","CREVE COEUR","63141-6174",{"$nulls":3},1,1,0,1,0]
[null,"GREEN TRAILS ELEMENTARY","170 PORTICO DR","CHESTERFIELD","63017-2206",{"$nulls":3},1,1,0,1,0]
[null,"HANNA WOODS ELEMENTARY","720 HANNA RD","BALLWIN","63021-6746",{"$nulls":3},1,1,0,1,0]
[null,"HENRY ELEMENTARY","700 HENRY AVE","BALLWIN","63011-2737",{"$nulls":3},1,2,0,1,0]
[null,"HIGHCROFT RIDGE ELEMENTARY","15380 HIGHCROFT DR","CHESTERFIELD","63017-5435",{"$nulls":3},1,2,0,1,0]
[null,"INSTRUCTIONAL SERVICES","12568 FEE FEE RD","SAINT LOUIS","63146-3863",null,null,1,null,2,0,1,0]
[null,"MASON RIDGE ELEMENTARY","715 S MASON RD","SAINT LOUIS","63141-8525",{"$nulls":3},1,2,0,1,0]
[null,"MCKELVEY ELEMENTARY","1751 MCKELVEY RD","MARYLAND HEIGHTS","63043-2816",{"$nulls":3},1,1,0,1,0]
[null,"NORTH HIGH","12860 FEE FEE RD","SAINT LOUIS","63146-4431",{"$nulls":3},2,2,0,1,0]
[null,"NORTHEAST MIDDLE","181 COEUR DE VILLE DR","CREVE COEUR","63141-6602",{"$nulls":3},2,2,0,1,0]
[null,"OAK BROOK ELEMENTARY","510 BIG BEND RD","BALLWIN","63021-6587",{"$nulls":3},1,1,0,1,0]
[null,"OPERATIONS (PARKWAY SCHOOLS)","363 N WOODS MILL RD","CHESTERFIELD","63017-3329",null,null,1,null,3,0,1,0]
[null,"PARKWAY PRESCHOOL","12790 FEE FEE RD","SAINT LOUIS","63146-4431",1,{"$nulls":3},1,0,1,0]
[null,"PIERREMONT ELEMENTARY","1215 DAUPHINE LN","MANCHESTER","63011-4119",null,1,null,null,2,0,1,0]
[null,"RIVER BEND ELEMENTARY","224 RIVER VALLEY DR","CHESTERFIELD","63017-2660",{"$nulls":3},1,1,0,1,0]
[null,"ROSS ELEMENTARY","1150 ROSS AVE","SAINT LOUIS","63146-4524",{"$nulls":3},1,1,0,1,0]
[null,"SHENANDOAH VALLEY ELEMENTARY","15399 APPALACHIAN TRL","CHESTERFIELD","63017-1939",{"$nulls":3},1,1,0,1,0]
[null,"SORRENTO SPRINGS ELEMENTARY","390 TUMULTY DR","BALLWIN","63021-6439",{"$nulls":3},1,1,0,1,0]
[null,"SOUTH HIGH","801 HANNA RD","MANCHESTER","63021-6771",{"$nulls":3},3,3,0,1,0]
[null,"SOUTH MIDDLE","760 WOODS MILL RD","BALLWIN","63011-3654",{"$nulls":3},2,2,0,1,0]
[null,"SOUTHWEST MIDDLE","701 WREN AVE","MANCHESTER","63021-4310",{"$nulls":3},2,2,0,1,0]
[null,"TRANSPORTATION (PKWY SCHOOLS)","347 N WOODSMILL RD","Saint Louis","63146-3146",null,null,1,null,1,0,1,0]
[null,"WEST HIGH","14653 CLAYTON RD","CHESTERFIELD","63017-3017",{"$nulls":3},4,3,0,1,0]
[null,"WEST MIDDLE","2312 BAXTER RD","CHESTERFIELD","63017-7721",{"$nulls":3},1,3,0,1,0]
[null,"WREN HOLLOW ELEMENTARY","655 WREN AVE","MANCHESTER","63021-6663",{"$nulls":3},1,2,0,1,0]
[]
[{"$nulls":5},"Parkway Monthly Regular Total",{"$nulls":4},{"$f":"SUM(K7:K39)","v":0}]
[]
[{"$nulls":5},"Parkway Monthly Summer Total ",{"$nulls":6},{"$f":"SUM(M7:M39)","v":0}]
[]
[{"$nulls":5},"Parkway Annual Combined Total ",{"$nulls":6},{"$f":"((K41*10)+(M43*2))","v":0}]
[]
[null,"Rockwood School District"]
[null,"Eureka High School","4525 Highway 109","Eureka",63025,null,1,1,2,5,0,1,0]
[null,"Lafayette High School","17050 Clayton Rd.","Wildwood",63011,null,null,1,2,5,0,1,0]
[null,"Marquette High School","2351 Clarkson Rd.","Chesterfield",63017,null,null,1,2,5,0,1,0]
[null,"Rockwood Summit High School","1780 Hawkins Rd.","Fenton",63026,{"$nulls":3},2,5,0,1,0]
[null,"Crestview Middle School and Grounds","16025 Clayton rd.","Ellisville",63011,{"$nulls":3},3,5,0,1,0]
[null,"LaSalle Springs Middle School","3300 Highway 109","Wildwood",63038,null,null,1,1,3,0,1,0]
[null,"Rockwood South Middle School","1628 Hawkins Rd.","Fenton",63026,{"$nulls":3},2,3,0,1,0]
[null,"Selvidge Middle School","235 New Ballwin Rd.","Ballwin",63021,{"$nulls":3},2,2,0,1,0]
[null,"Rockwood Valley Middle School","1220 Babler Park Dr.","Wildwood",63038,{"$nulls":3},2,3,0,1,0]
[null,"Wildwood Middle School","17401 Manchester Rd.","Wildwood",63038,{"$nulls":3},2,2,0,1,0]
[null,"Ballwin Elementary","400 Jefferson","Ballwin",63021,{"$nulls":3},1,3,0,1,0]
[null,"Blevins Elementary","25 E. North St.","Eureka",63025,{"$nulls":3},1,2,0,1,0]
[null,"Bowles Elementary","501 Bowles Ave.","Fenton",63026,{"$nulls":3},1,2,0,1,0]
[null,"Chesterfield Elementary","17700 Wild Horse Creek Rd.","Chesterfield",63005,{"$nulls":3},1,2,0,1,0]
[null,"Babler Elementary","1955 Shepard Rd.","Wildwood",63038,{"$nulls":3},2,2,0,1,0]
[null,"Ellisville Elementary","1425 Froesel","Ellisville",63011,{"$nulls":3},2,2,0,1,0]
[null,"Center for Creative Learning (CCL)","1401 Froesel","Ellisville",63021,{"$nulls":3},1,2,0,1,0]
[null,"Eureka Elementary","5350 Rockwood Arbor Dr.","Eureka",63025,{"$nulls":3},1,2,0,1,0]
[null,"Fairway Elementary ","480 Old Fairway Dr.","Wildwood",63040,{"$nulls":3},1,2,0,1,0]
[null,"Green Pines Elementary","16543 Green Pines Dr.","Wildwood",63011,{"$nulls":3},1,2,0,1,0]
[null,"Geggie Elementary","430 Bald Hill Rd.","Eureka",63025,{"$nulls":3},1,2,0,1,0]
[null,"Kellison Elementary","1626 Hawkins Rd.","Fenton",63026,{"$nulls":3},1,2,0,1,0]
[null,"Ridge Meadows Elementary","777 Ridge Rd.","Ellisville",63021,{"$nulls":3},1,2,0,1,0]
[null,"Kehrs Mill Elementary","2650 Kehrs Mill Rd.","Chesterfield",63017,{"$nulls":3},1,2,0,1,0]
[null,"Pond Elementary","17200 Manchester Rd.","Wildwood",63040,{"$nulls":3},1,2,0,1,0]
[null,"Stanton Elementary","1430 Flora Del Dr.","Fenton",63026,{"$nulls":3},1,2,0,1,0]
[null,"Uthoff Elementary","1600 Uthoff Dr.","Fenton",63026,{"$nulls":3},1,2,0,1,0]
[null,"Westridge Elementary","908 Crestland Dr.","Ballwin",63011,{"$nulls":3},1,2,0,1,0]
[null,"Wild Horse Elementary","16695 Wild Horse Creek Rd.","Chesterfield",63005,{"$nulls":3},1,2,0,1,0]
[null,"Woerther Elementary","314 New Ballwin Rd.","Ballwin",63021,{"$nulls":3},1,2,0,1,0]
[null,"Administration Building","111 E. North St.","Eureka",63025,{"$nulls":3},1,1,0,1,0]
[null,"Early Childhood-Clarkson Valley","2730 Clarkson Rd.","Chesterfield",63005,{"$nulls":3},1,2,0,1,0]
[null,"Early Childhood-Eureka","442 West Fourth St.","Eureka",63025,{"$nulls":3},1,2,0,1,0]
[null,"Vandover Campus","1900 Hawkins Rd.","Fenton",63026,{"$nulls":3},1,2,0,1,0]
[null,"Warehouse & Maintenance Bldg","17146 Manchester Rd.","Wildwood",63040,{"$nulls":3},1,2,0,1,0]
[null,"C-Shop (one 30 yd roll off)","500 N Central","Eureka",63025,{"$nulls":3},"30 yd roll",null,0,1,0]
[null,"C-Shop ","500 N Central","Eureka",63025,{"$nulls":3},2,5,0,1,0]
[null,"ILC/Administrative Annex","500 N Central","Eureka",63025,{"$nulls":3},3,5,0,1,0]
[null,"Transportaton - Wildwood","17146 Manchester Rd. Building ","Wildwood",63040,{"$nulls":3},1,2,0,1,0]
[null,"Transportation-Fenton","4555 Commerce Ave.","Fenton",63049,1,{"$nulls":3},1,0,1,0]
[]
[{"$nulls":5},"Rockwood Monthly Regular Total",{"$nulls":4},{"$f":"SUM(K48:K87)","v":0}]
[]
[{"$nulls":5},"Rockwood Monthly Summer Total ",{"$nulls":6},{"$f":"SUM(M48:M87)","v":0}]
[]
[{"$nulls":5},"Rockwood Annual Combined Total ",{"$nulls":6},{"$f":"((K89*10)+(M91*2))","v":0}]
[]
[null,"PATTONVILLE SCHOOL DISTRICT - WASTE HAULING"]
[null,"Briarcrest Elementary","2900 Adie Rd","St Ann",63074,{"$nulls":3},1,2,0,1,0]
[null,"Bridgeway Elementary","11635 Oakbury Ct","Bridgeton",63044,{"$nulls":3},1,2,0,1,0]
[null,"Drummond Elementary","3721 St Bridget Ln","St. Ann",63074,null,null,2,2,3,0,1,0]
[null,"Parkwood Elementary","3199 Parkwood Ln","Maryland Heights",63043,{"$nulls":3},1,2,0,1,0]
[null,"Remington Elementary","102 Fee Fee Road","Maryland Heights",63043,{"$nulls":3},1,3,0,1,0]
[null,"Rose Acres Elementary","2905 Rose Acres Ln","Maryland Heights",63043,{"$nulls":3},1,3,0,1,0]
[null,"Willow Brook Elementary","11022 Schuetz Rd","St. Louis",63146,{"$nulls":3},1,2,0,1,0]
[null,"Learning Center","11097 St. Charles Rock Rd","St. Ann",63074,{"$nulls":3},1,1,0,1,0]
[null,"Maintenance Bldg","123 Harding Ave","Maryland Heights",63043,{"$nulls":3},1,1,0,1,0]
[null,"Pattonville High School","2497 Creve Coeur Mill Rd","Maryland Heights",63043,null,null,3,4,3,0,1,0]
[null,"Bus Garage","4050 Banks Road","St. Ann",63074,{"$nulls":3},1,2,0,1,0]
[null,"Holman Middle School","11055 St. Charles Rock Rd","St. Ann",63074,{"$nulls":3},3,2,0,1,0]
[null,"Printing Building","115 Harding Ave","Maryland Heights",63043,null,null,1,null,2,0,1,0]
[null,"Pattonville Heights Middle ","195 Fee Fee Rd","Maryland Heights",63043,{"$nulls":3},2,3,0,1,0]
[]
[{"$nulls":5},"Pattonville Monthly Regular Total ",{"$nulls":4},{"$f":"SUM(K96:K109)","v":0}]
[]
[{"$nulls":5},"Pattonville Monthly Summer Total ",{"$nulls":6},{"$f":"SUM(M96:M109)","v":0}]
[]
[{"$nulls":5},"Pattonville Annual Combined Total ",{"$nulls":6},{"$f":"((K111*10)+(M113*2))","v":0}]
[]
[]
[null,"SPECIAL SCHOOL DISTRICT - WASTE HAULING"]
[null,"Ackerman","1550 Derhake Rd","Florissant",63033,{"$nulls":3},1,3,0,1,0]
[null,"Page Bridges","9375 Page Ave","St. louis",63114,1,{"$nulls":3},2,0,1,0]
[null,"Central Office","12110 Clayton Rd","St. louis",63131,null,1,null,null,5,0,1,0]
[null,"Central Transportation",{"$nulls":4},1,null,null,"on call",0,1,0]
[null,"Support Operations Fee Fee","700 Fee Fee Rd","Maryland Heights",63043,null,null,1,null,1,0,1,0]
[null,"Litzsinger","10094 Litzsinger Rd","Ladue",63124,{"$nulls":3},1,5,0,1,0]
[null,"North County Tech","1700 Derhake Rd","Florissant",63033,{"$nulls":3},7,2,0,1,0]
[null,"North County Tech","1700 Derhake Rd","Florissant",63033,{"$nulls":3},"40 yd roll",null,0,1,0]
[null,"Neuwoehner","12112 Clayton Rd","Town & Country",63131,null,null,1,null,5,0,1,0]
[null,"Northview","1520 Derhake Rd","Florissant",63033,{"$nulls":3},2,2,0,1,0]
[null,"South County Tech","12721 W Watson Rd","St. louis",63127,null,7,null,null,5,0,1,0]
[null,"South County Tech","12721 W Watson Rd","St. louis",63127,{"$nulls":3},"2 30 yd",null,0,1,0]
[null,"Southview","11660 Eddie & Park Rd","Crestwood",63126,null,null,1,null,5,0,1,0]
[]
[{"$nulls":4},"Special School District Monthly Regular Total ",{"$nulls":5},{"$f":"SUM(K119:K131)","v":0}]
[]
[{"$nulls":4},"Special School District Monthly Summer Total ",{"$nulls":7},{"$f":"SUM(M119:M131)","v":0}]
[]
[{"$nulls":4},"Special School District Annual Combined Total ",{"$nulls":7},{"$f":"((K133*10)+(M135*2))","v":0}]
[]
[null,"Hazelwood School District - Waste Hauling"]
[null,"Armstrong Elementary","6255 Howdershell Rd","Hazelwood ",63042,null,null,1,null,5,0,1,0]
[null,"Arrowpoint Elementary","2017 Arrowpoint Dr","St. Louis",63138,null,null,1,null,5,0,1,0]
[null,"Barrington Elementary","15600 Old Halls Ferry Rd","Florissant ",63034,null,null,1,null,5,0,1,0]
[null,"Brown Elementary","3325 Chickory Creek Ln","Florissant ",63031,null,null,1,null,5,0,1,0]
[null,"Cold Water Elementary","1105 Wiethaupt Rd","Florissant ",63031,null,null,1,null,5,0,1,0]
[null,"Garrett Elementary","1400 Ville Rosa Ln","Hazelwood",63042,null,null,1,null,5,0,1,0]
[null,"Grannemann Elementary","2324 Redman Rd","St. Louis",63136,null,null,1,null,5,0,1,0]
[null,"Jamestown Elementary","13750 Old Jamestown Rd","Florissant ",63033,null,null,1,null,5,0,1,0]
[null,"Jana Elementary","405 Jana Dr","Florissant ",63031,null,null,1,null,5,0,1,0]
[null,"Jury Elementary","11950 Old Halls Ferry Rd","Florissant ",63033,null,null,1,null,5,0,1,0]
[null,"Keeven Elementary","11230 Old Halls Ferry Rd","Florissant ",63136,null,null,1,null,5,0,1,0]
[null,"Larimore Elementary","1025 Trampe Ln","St. Louis",63138,null,null,1,null,5,0,1,0]
[null,"Lawson Elementary","1830 Charbonier Rd","Florissant ",63031,null,null,1,null,5,0,1,0]
[null,"Lusher Elementary","2015 Mullanphy Rd","Florissant ",63031,null,null,1,null,5,0,1,0]
[null,"McCurdy Elementary","975 Lindsay Ln","Florissant ",63031,null,null,1,null,5,0,1,0]
[null,"McNair Elementary","585 Coachway Ln","Hazelwood",63042,null,null,1,null,5,0,1,0]
[null,"Russell Elementary","7350 Howdershell Rd","Hazelwood",63042,null,null,1,null,5,0,1,0]
[null,"Townsend Elementary","6645 Parker Rd","Florissant ",63033,null,null,1,null,5,0,1,0]
[null,"Twillman Elementary","11831 Bellfontaine Rd","St. Louis",63138,null,null,2,null,5,0,1,0]
[null,"Walker Elementary","1250 Humes Ln","Florissant ",63031,null,null,1,null,5,0,1,0]
[null,"Hazelwood Central Middle","13450 Old Jamestown Rd","Florissant ",63033,null,null,2,null,5,0,1,0]
[null,"Hazelwood Opportunity Center","1865 Dunn Rd","St. Louis",63138,null,null,1,null,5,0,1,0]
[null,"Hazelwood North Middle","4420 Vaile Ave","Florissant ",63034,null,null,2,null,5,0,1,0]
[null,"Hazelwood Northwest Middle","1605 Shackelford Rd","Florissant ",63031,null,null,2,null,5,0,1,0]
[null,"Hazelwood Southeast Middle","918 Prigge Rd","St. Louis",63138,null,null,2,null,5,0,1,0]
[null,"Hazelwood West Middle","12834 Missouri Bottom Rd","Hazelwood",63042,null,null,2,null,5,0,1,0]
[null,"Hazelwood Central High","15875 New Halls Ferry Rd","Florissant ",63031,null,null,4,null,5,0,1,0]
[null,"Hazelwood East High","11300 Dunn Rd","St. Louis",63138,null,null,4,null,5,0,1,0]
[null,"Hazelwood West High","1 Wildcat Ln","Hazelwood ",63042,null,null,5,null,5,0,1,0]
[null,"Hazelwood Administration (YLC/Galactic)","15955 New Halls Ferry Road","Florissant ",63031,null,null,2,null,5,0,1,0]
[null,"Hazelwood Family Outreach Center","13780 Old Halls Ferry Road","Florissant ",63031,null,null,1,null,2,0,1]
[]
[{"$nulls":5},"Hazelwood Monthly Regular Total ",{"$nulls":4},{"$f":"SUM(K140:K170)","v":0}]
[]
[{"$nulls":5},"Hazelwood Monthly Summer Total ",{"$nulls":6},{"$f":"SUM(M140:M170)","v":0}]
[]
[{"$nulls":5},"Hazelwood Annual Combined Total ",{"$nulls":6},{"$f":"((K172*10)+M174*2)","v":0}]
[]
[null,"WEBSTER GROVES SCHOOL DISTRICT - WASTE HAULING"]
[null,"Admin Office","400 E Lockwood","Webster Groves",63119,null,1,null,null,1,0,1,0]
[null,"Ambrose Family Center","222 E. Cedar Dr","Webster Groves",63119,{"$nulls":3},1,2,0,1,0]
[null,"Avery Elementary","909 N Bompart Ave","Webster Groves",63119,{"$nulls":3},1,3,0,1,0]
[null,"Bristol Elementary","20 Gray Ave","Webster Groves",63119,{"$nulls":3},1,3,0,1,0]
[null,"Clark Elementary","9130 Big Bend Blvd","Webster Groves",63119,{"$nulls":3},1,2,0,1,0]
[null,"Edgar Road Elementary","1131 Edgar Road","Webster Groves",63119,{"$nulls":3},1,3,0,1,0]
[null,"Hixson Middle School","630 S. Elm","Webster Groves",63119,{"$nulls":3},1,4,0,1,0]
[null,"Hudson Elementary","9825 Hudson Ave","Rock Hill",63119,null,null,1,null,2,0,1,0]
[null,"Service Center","3232 S Brentwood Blvd","St Louis",63119,null,1,null,null,1,0,1,0]
[null,"Steger 6th Grade Center/Givens Elementary","701 N Rock Hill Rd","Rock Hill",63119,{"$nulls":3},1,3,0,1,0]
[null,"Webster Groves High School","100 Selma","Webster Groves",63119,{"$nulls":3},2,5,0,1,0]
[]
[{"$nulls":5},"Web. Groves Monthly Regular Total ",{"$nulls":4},{"$f":"SUM(K179:K189)","v":0}]
[]
[{"$nulls":5},"Web. Groves Monthly Summer Total ",{"$nulls":6},{"$f":"SUM(M179:M189)","v":0}]
[]
[{"$nulls":5},"Web. Groves Annual Combined Total ",{"$nulls":6},{"$f":"((K191*10)+(M193*2))","v":0}]
[]
[{"$nulls":5},"Partnership Monthly Regular Total ",{"$nulls":4},{"$f":"(K41+K89+K111+K133+K172+K191)","v":0}]
[]
[{"$nulls":5},"Partnership Monthly Summer Total ",{"$nulls":6},{"$f":"SUM(M43+M91+M113+M135+M174+M193)","v":0}]
[]
[{"$nulls":5},"Partnership Annual Combined Total ",{"$nulls":6},{"$f":"((K197*10)+(M199*2))","v":0}]
[]
[null,"Per Unit Cost of Landfill"]
[null,"Price increase or decrease of monthly charge for an increase / decrease of 1 day of weekly service:"]
[]
[null,"Monthly cost to Increase or Decrease 2 yards per week:",null,{"v":0,"d":"$0.00"}]
[]
[null,"Monthly cost to Increase or Decrease 4 yards per week:",null,{"v":0,"d":"$0.00"}]
[]
[null,"Monthly cost to Increase or Decrease 6 yards per week:",null,{"v":0,"d":"$0.00"}]
[]
[null,"Monthly cost to Increase or Decrease 8 yards per week:",null,{"v":0,"d":"$0.00"}]
[]
[]
[null,"Price per pull for called in extra pickups"]
[]
[null,"2 Yard Extra Pickup:",{"v":0,"d":"$0.00"}]
[]
[null,"4 Yard Extra Pickup:",{"v":0,"d":"$0.00"}]
[]
[null,"6 Yard Extra Pickup:",{"v":0,"d":"$0.00"}]
[]
[null,"8 Yard Extra Pickup:",{"v":0,"d":"$0.00"}]
[]
[]
[null,"Price for roll-off service per pull","approx. 100 pulls per year"]
[]
[null,"Price per 20 yard Roll Off",0]
[]
[null,"Price per 30 yard Roll Off",0]
[]
[null,"Price per 40 yard Roll Off",0]
[]
[null,"per ton fee above 3 tons",0]
[]
[null,null,"approx 1 pull per year"]
[null,"** Sealed, Contained Asbestos Roll Off, to include all legally required documentation Price per Pull",0]
[]
[null,"Price per Unit for a Locking Mechanism "]
[null,"2 Yard Container:",{"v":0,"d":"$0.00"}]
[]
[null,"4 Yard Container:",{"v":0,"d":"$0.00"}]
[]
[null,"6 Yard Container:",{"v":0,"d":"$0.00"}]
[]
[null,"8 Yard Container:",{"v":0,"d":"$0.00"}]

{"sheet":"Recycling Service","index":1,"n_rows":234,"n_cols":12,"rows_kept":234,"merged":[[0,1,0,2],[2,0,2,8],[5,0,5,9],[50,5,50,8],[52,5,52,8],[54,5,54,8],[56,0,56,9],[96,5,96,8],[98,5,98,8],[100,5,100,8],[102,0,102,9],[116,5,116,8],[118,5,118,8],[120,5,120,8],[122,0,122,9],[134,3,134,8],[136,3,136,8],[138,3,138,8],[140,0,140,9],[172,5,172,8],[174,5,174,8],[176,5,176,8],[178,0,178,9],[189,5,189,8],[191,5,191,8],[193,5,193,8],[196,5,196,8],[198,5,198,8],[200,5,200,8],[202,0,202,3],[206,0,206,1],[208,0,208,1],[210,0,210,1],[212,0,212,1],[224,0,224,1],[233,1,236,11]]}
["VENDOR NAME:"]
[]
["Single Stream Recycling Hauling"]
["Location Name","Address","City","Zip","2 yd","4 yd","6 yd","8 yd","Service per week","Monthly Cost per Service","Summer Service per week","Monthly Cost per Service"]
[]
["Parkway School District "]
["ADMINISTRATION OFFICES","455 N WOODS MILL RD","CHESTERFIELD",63017,{"$nulls":3},1,1,0,1,0]
["BARRETTS ELEMENTARY","1780 CARMAN RD","MANCHESTER","63021-7169",{"$nulls":3},4,2,0,1,0]
["BELLERIVE ELEMENTARY","620 RUE DE FLEUR DR","CREVE COEUR","63141-7364",{"$nulls":3},2,1,0,1,0]
["CARMAN TRAILS ELEMENTARY","555 S WEIDMAN RD","MANCHESTER","63021-5729",{"$nulls":3},1,1,0,1,0]
["CARMAN TRAILS ELEMENTARY- Community Bins","555 S WEIDMAN RD","MANCHESTER","63021-5729",{"$nulls":3},2,2,0,1,0]
["CENTRAL HIGH","369 N WOODS MILL RD","CHESTERFIELD","63017-3329",{"$nulls":3},3,6,0,1,0]
["CENTRAL HIGH","369 N WOODS MILL RD","CHESTERFIELD","63017-3329",{"$nulls":3},1,2,0,1,0]
["CENTRAL MIDDLE","471 N WOODS MILL RD","CHESTERFIELD","63017-3327",{"$nulls":3},2,1,0,1,0]
["CLAYMONT ELEMENTARY","405 COUNTRY CLUB DR","BALLWIN","63011-2547",{"$nulls":3},1,1,0,1,0]
["CRAIG ELEMENTARY","1492 CRAIG RD","SAINT LOUIS","63146-4842",{"$nulls":3},1,1,0,1,0]
["CRAIG ELEMENTARY- Community Bins","1492 CRAIG RD","SAINT LOUIS","63146-4842",{"$nulls":3},2,2,0,1,0]
["EARLY CHILDHOOD CENTER","14605 CLAYTON RD","BALLWIN","63011-2656",{"$nulls":3},2,1,0,1,0]
["EARLY CHILDHOOD CENTER-NORTH","12790 FEE FEE RD","SAINT LOUIS","63146-4431",1,{"$nulls":3},2,0,1,0]
["FERN RIDGE HIGH","13157 N OLIVE SPUR RD","CREVE COEUR","63141-6174",{"$nulls":3},2,2,0,1,0]
["GREEN TRAILS ELEMENTARY","170 PORTICO DR","CHESTERFIELD","63017-2206",{"$nulls":3},2,1,0,1,0]
["HANNA WOODS ELEMENTARY","720 HANNA RD","BALLWIN","63021-6746",{"$nulls":3},2,1,0,1,0]
["HENRY ELEMENTARY","700 HENRY AVE","BALLWIN","63011-2737",{"$nulls":3},1,2,0,1,0]
["HIGHCROFT RIDGE ELEMENTARY","15380 HIGHCROFT DR","CHESTERFIELD","63017-5435",{"$nulls":3},1,1,0,1,0]
["INSTRUCTIONAL SERVICES","12568 FEE FEE RD","SAINT LOUIS","63146-3863",{"$nulls":3},2,1,0,1,0]
["MASON RIDGE ELEMENTARY","715 S MASON RD","SAINT LOUIS","63141-8525",{"$nulls":3},2,1,0,1,0]
["MCKELVEY ELEMENTARY","1751 MCKELVEY RD","MARYLAND HEIGHTS","63043-2816",{"$nulls":3},1,2,0,1,0]
["NORTH HIGH","12860 FEE FEE RD","SAINT LOUIS","63146-4431",{"$nulls":3},3,6,0,1,0]
["NORTH HIGH-Community Bins","12860 FEE FEE RD","SAINT LOUIS","63146-4431",{"$nulls":3},2,4,0,1,0]
["NORTHEAST MIDDLE","181 COEUR DE VILLE DR","CREVE COEUR","63141-6602",{"$nulls":3},1,1,0,1,0]
["NORTHEAST MIDDLE-Community Bins","181 COEUR DE VILLE DR","CREVE COEUR","63141-6602",{"$nulls":3},2,2,0,1,0]
["OAK BROOK ELEMENTARY","510 BIG BEND RD","BALLWIN","63021-6587",{"$nulls":3},1,2,0,1,0]
["OAK BROOK ELEMENTARY-Community Bins","510 BIG BEND RD","BALLWIN","63021-6587",{"$nulls":3},2,4,0,1,0]
["OPERATIONS (PARKWAY SCHOOLS)","363 N WOODS MILL RD","CHESTERFIELD","63017-3329",{"$nulls":3},1,1,0,1,0]
["PIERREMONT ELEMENTARY","1215 DAUPHINE LN","MANCHESTER","63011-4119",{"$nulls":3},2,1,0,1,0]
["RIVER BEND ELEMENTARY","224 RIVER VALLEY DR","CHESTERFIELD","63017-2660",{"$nulls":3},1,1,0,1,0]
["ROSS ELEMENTARY","1150 ROSS AVE","SAINT LOUIS","63146-4524",{"$nulls":3},2,1,0,1,0]
["SHENANDOAH VALLEY ELEMENTARY","15399 APPALACHIAN TRL","CHESTERFIELD","63017-1939",{"$nulls":3},1,2,0,1,0]
["SHENANDOAH VALLEY ELEMENTARY-Community Bins","15399 APPALACHIAN TRL","CHESTERFIELD","63017-1939",null,2,null,null,4,0,1,0]
["SORRENTO SPRINGS ELEMENTARY","390 TUMULTY DR","BALLWIN","63021-6439",{"$nulls":3},1,1,0,1,0]
["SORRENTO SPRINGS ELEMENTARY-Community Bins","390 TUMULTY DR","BALLWIN","63021-6439",{"$nulls":3},2,2,0,1,0]
["SOUTH HIGH","801 HANNA RD","MANCHESTER","63021-6771",{"$nulls":3},2,6,0,1,0]
["SOUTH MIDDLE","760 WOODS MILL RD","BALLWIN","63011-3654",{"$nulls":3},2,1,0,1,0]
["SOUTHWEST MIDDLE","701 WREN AVE","MANCHESTER","63021-4310",{"$nulls":3},2,2,0,1,0]
["TRANSPORTATION (PKWY SCHOOLS)","347 N WOODSMILL RD","Saint Louis","63146-3146",{"$nulls":3},1,1,0,1,0]
["WEST HIGH","14653 CLAYTON RD","CHESTERFIELD","63017-3017",{"$nulls":3},2,4,0,1,0]
["WEST HIGH-Community Bin","14653 CLAYTON RD","CHESTERFIELD","63017-3017",{"$nulls":3},1,2,0,1,0]
["WEST MIDDLE","2312 BAXTER RD","CHESTERFIELD","63017-7721",{"$nulls":3},2,2,0,1,0]
["WREN HOLLOW ELEMENTARY","655 WREN AVE","MANCHESTER","63021-6663",{"$nulls":3},2,1,0,1,0]
[]
[{"$nulls":5},"Parkway Monthly Regular  Total",{"$nulls":3},{"$f":"SUM(C7:C49)","v":0}]
[]
[{"$nulls":5},"Parkway Monthly Summer Total ",{"$nulls":5},{"$f":"SUM(M7:M49)","v":0}]
[]
[{"$nulls":5},"Parkway Annual Combined Total ",{"$nulls":5},{"$f":"((J51*10)+(L53*2))","v":0}]
[]
["Rockwood School District"]
["Eureka High School","4525 Highway 109","Eureka",63025,{"$nulls":3},3,2,0,1,0]
["Lafayette High School","17050 Clayton Rd.","Wildwood",63011,{"$nulls":3},2,2,0,1,0]
["Marquette High School","2351 Clarkson Rd.","Chesterfield",63017,{"$nulls":3},2,3,0,1,0]
["Rockwood Summit High School","1780 Hawkins Rd.","Fenton",63026,{"$nulls":3},3,2,0,1,0]
["Crestview Middle School and Grounds","16025 Clayton rd.","Ellisville",63011,{"$nulls":3},2,2,0,1,0]
["LaSalle Springs Middle School","3300 Highway 109","Wildwood",63038,{"$nulls":3},2,2,0,1,0]
["Rockwood South Middle School","1628 Hawkins Rd.","Fenton",63026,{"$nulls":3},2,2,0,1,0]
["Selvidge Middle School","235 New Ballwin Rd.","Ballwin",63021,{"$nulls":3},1,1,0,1,0]
["Rockwood Valley Middle School","1220 Babler Park Dr.","Wildwood",63038,{"$nulls":3},2,2,0,1,0]
["Wildwood Middle School","17401 Manchester Rd.","Wildwood",63038,{"$nulls":3},2,1,0,1,0]
["Ballwin Elementary","400 Jefferson","Ballwin",63021,{"$nulls":3},1,1,0,1,0]
["Blevins Elementary","25 E. North St.","Eureka",63025,{"$nulls":3},1,1,0,1,0]
["Bowles Elementary","501 Bowles Ave.","Fenton",63026,{"$nulls":3},1,1,0,1,0]
["Chesterfield Elementary","17700 Wild Horse Creek Rd.","Chesterfield",63005,{"$nulls":3},1,1,0,1,0]
["Babler Elementary","1955 Shepard Rd.","Wildwood",63038,{"$nulls":3},3,1,0,1,0]
["Ellisville Elementary","1425 Froesel","Ellisville",63011,{"$nulls":3},2,1,0,1,0]
["Center for Creative Learning (CCL) ","1401 Froesel","Ellisville",63021,{"$nulls":3},1,1,0,1,0]
["Eureka Elementary","5350 Rockwood Arbor Dr.","Eureka",63025,{"$nulls":3},1,1,0,1,0]
["Fairway Elementary ","480 Old Fairway Dr.","Wildwood",63040,{"$nulls":3},1,1,0,1,0]
["Green Pines Elementary","16543 Green Pines Dr.","Wildwood",63011,{"$nulls":3},1,1,0,1,0]
["Geggie Elementary","430 Bald Hill Rd.","Eureka",63025,{"$nulls":3},2,1,0,1,0]
["Kellison Elementary","1626 Hawkins Rd.","Fenton",63026,{"$nulls":3},2,2,0,1,0]
["Ridge Meadows Elementary","777 Ridge Rd.","Ellisville",63021,{"$nulls":3},2,1,0,1,0]
["Kehrs Mill Elementary","2650 Kehrs Mill Rd.","Chesterfield",63017,{"$nulls":3},1,1,0,1,0]
["Pond Elementary","17200 Manchester Rd.","Wildwood",63040,{"$nulls":3},1,1,0,1,0]
["Stanton Elementary","1430 Flora Del Dr.","Fenton",63026,{"$nulls":3},1,1,0,1,0]
["Uthoff Elementary","1600 Uthoff Dr.","Fenton",63026,{"$nulls":3},1,1,0,1,0]
["Westridge Elementary","908 Crestland Dr.","Ballwin",63011,{"$nulls":3},1,2,0,1,0]
["Wild Horse Elementary","16695 Wild Horse Creek Rd.","Chesterfield",63005,{"$nulls":3},1,1,0,1,0]
["Woerther Elementary","314 New Ballwin Rd.","Ballwin",63021,{"$nulls":3},1,1,0,1,0]
["Administration Building","111 E. North St.","Eureka",63025,{"$nulls":3},1,1,0,1,0]
["Administration Building/ILC","500 N. Central","Eureka",63025,{"$nulls":3},2,1,0,1,0]
["Early Childhood- Clarkson Valley","2730 Clarkson Rd.","Chesterfield",63005,{"$nulls":3},1,1,0,1,0]
["Early Childhood- Eureka","442 West Fourth St.","Eureka",63025,{"$nulls":3},1,1,0,1,0]
["Early Childhhod -Vandover ","1900 Hawkins Rd.","Fenton",63026,{"$nulls":3},1,1,0,1,0]
["Warehouse & Maintenance Bldg","17146 Manchester Rd.","Wildwood",63040,{"$nulls":3},1,1,0,1,0]
["Transportation-Wildwood","17146 Manchester Rd.","Wildwood",63040,{"$nulls":3},1,2,0,1,0]
[]
[]
[{"$nulls":5},"Rockwood Monthly Regular Total",{"$nulls":3},{"$f":"SUM(J58:J94)","v":0}]
[]
[{"$nulls":5},"Rockwood Monthly Summer Total ",{"$nulls":5},{"$f":"SUM(L58:L94)","v":0}]
[]
[{"$nulls":5},"Rockwood Annual Combined Total ",{"$nulls":5},{"$f":"((J97*10)+(L99*2))","v":0}]
[]
["PATTONVILLE SCHOOL DISTRICT "]
["Briarcrest Elementary","2900 Adie Rd","St Ann",63074,{"$nulls":3},3,1,0,1,0]
["Bridgeway Elementary","11635 Oakbury Ct","Bridgeton",63044,{"$nulls":3},5,1,0,1,0]
["Drummond Elementary","3721 St Bridget Ln","St. Ann",63074,{"$nulls":3},4,2,0,1,0]
["Parkwood Elementary","3199 Parkwood Ln","Maryland Heights",63043,{"$nulls":3},3,1,0,1,0]
["Remington Elementary","102 Fee Fee Road","Maryland Heights",63043,{"$nulls":3},3,2,0,1,0]
["Rose Acres Elementary","2905 Rose Acres Ln","Maryland Heights",63043,{"$nulls":3},2,8,0,1,0]
["Willow Brook Elementary","11022 Schuetz Rd","St. Louis",63146,{"$nulls":3},2,8,0,1,0]
["Learning Center","11097 St. Charles Rock Rd","St. Ann",63074,{"$nulls":3},1,1,0,1,0]
["Pattonville High School","2497 Creve Coeur Mill Rd","Maryland Heights",63043,{"$nulls":3},4,3,0,1,0]
["Holman Middle School","11055 St. Charles Rock Rd","St. Ann",63074,{"$nulls":3},2,2,0,1,0]
["Printing Building","115 Harding Ave","Maryland Heights",63043,{"$nulls":3},1,1,0,1,0]
["Pattonville Heights Middle ","195 Fee Fee Rd","Maryland Heights",63043,{"$nulls":3},4,2,0,1,0]
[]
[{"$nulls":5},"Pattonville Monthly Regular Total ",{"$nulls":3},{"$f":"SUM(J104:J115)","v":0}]
[]
[{"$nulls":5},"Pattonville Monthly Summer Total ",{"$nulls":5},{"$f":"SUM(L104:L115)","v":0}]
[]
[{"$nulls":5},"Pattonville Annual Combined Total ",{"$nulls":5},{"$f":"((J117*10)+(L119*2))","v":0}]
[]
["SPECIAL SCHOOL DISTRICT - WASTE HAULING"]
["Ackerman","1550 Derhake Rd","Florissant",63033,{"$nulls":3},1,3,0,1,0]
["Central Office","12110 Clayton Rd","St. louis",63131,{"$nulls":3},2,2,0,1,0]
["Central Transportation","10022 Meeks Blvd","St. louis",{"$nulls":4},1,1,0,1,0]
["Support Operations Fee Fee","700 Fee Fee Rd","Maryland Heights",63043,{"$nulls":3},1,1,0,1,0]
["Litzsinger","10094 Litzsinger Rd","Ladue",63124,{"$nulls":3},2,1,0,1,0]
["North County Tech","1700 Derhake Rd","Florissant",63033,{"$nulls":3},3,3,0,1,0]
["Neuwoehner","12112 Clayton Rd","Town & Country",63131,{"$nulls":3},2,1,0,1,0]
["Northview","1520 Derhake Rd","Florissant",63033,{"$nulls":3},2,3,0,1,0]
["South County Tech","12721 W Watson Rd","St. louis",63127,{"$nulls":3},3,2,0,1,0]
["Southview","11660 Eddie & Park Rd","Crestwood",63126,{"$nulls":3},2,1,0,1,0]
[]
[{"$nulls":3},"Special School District Monthly Regular Total ",{"$nulls":5},{"$f":"SUM(J124:J133)","v":0}]
[]
[{"$nulls":3},"Special School District Monthly Summer Total ",{"$nulls":7},{"$f":"SUM(L124:L133)","v":0}]
[]
[{"$nulls":3},"Special School District Annual Combined Total ",{"$nulls":7},{"$f":"((J135*10)+(L137*2))","v":0}]
[]
["Hazelwood School District "]
["Armstrong Elementary","6255 Howdershell Rd","Hazelwood ",63042,{"$nulls":3},1,2,0,1,0]
["Arrowpoint Elementary","2017 Arrowpoint Dr","St. Louis",63138,{"$nulls":3},1,5,0,1,0]
["Barrington Elementary","15600 Old Halls Ferry Rd","Florissant ",63034,{"$nulls":3},1,5,0,1,0]
["Brown Elementary","3325 Chickory Creek Ln","Florissant ",63031,{"$nulls":3},1,5,0,1,0]
["Cold Water Elementary","1105 Wiethaupt Rd","Florissant ",63031,{"$nulls":3},1,5,0,1,0]
["Garrett Elementary","1400 Ville Rosa Ln","Hazelwood",63042,{"$nulls":3},1,5,0,1,0]
["Grannemann Elementary","2324 Redman Rd","St. Louis",63136,{"$nulls":3},1,5,0,1,0]
["Jamestown Elementary","13750 Old Jamestown Rd","Florissant ",63033,{"$nulls":3},1,5,0,1,0]
["Jana Elementary","405 Jana Dr","Florissant ",63031,{"$nulls":3},1,5,0,1,0]
["Jury Elementary","11950 Old Halls Ferry Rd","Florissant ",63033,{"$nulls":3},1,5,0,1,0]
["Keeven Elementary","11230 Old Halls Ferry Rd","Florissant ",63136,{"$nulls":3},1,5,0,1,0]
["Larimore Elementary","1025 Trampe Ln","St. Louis",63138,{"$nulls":3},1,5,0,1,0]
["Lawson Elementary","1830 Charbonier Rd","Florissant ",63031,{"$nulls":3},1,5,0,1,0]
["Lusher Elementary","2015 Mullanphy Rd","Florissant ",63031,{"$nulls":3},1,5,0,1,0]
["McCurdy Elementary","975 Lindsay Ln","Florissant ",63031,{"$nulls":3},1,5,0,1,0]
["McNair Elementary","585 Coachway Ln","Hazelwood",63042,{"$nulls":3},1,5,0,1,0]
["Russell Elementary","7350 Howdershell Rd","Hazelwood",63042,{"$nulls":3},1,5,0,1,0]
["Townsend Elementary","6645 Parker Rd","Florissant ",63033,{"$nulls":3},1,5,0,1,0]
["Twillman Elementary","11831 Bellfontaine Rd","St. Louis",63138,null,1,null,null,5,0,1,0]
["Walker Elementary","1250 Humes Ln","Florissant ",63031,{"$nulls":3},1,5,0,1,0]
["Hazelwood Central Middle","13450 Old Jamestown Rd","Florissant ",63033,{"$nulls":3},1,5,0,1,0]
["Hazelwood Opportunity Center","1865 Dunn Rd","St. Louis",63138,{"$nulls":3},1,5,0,1,0]
["Hazelwood North Middle","4420 Vaile Ave","Florissant ",63034,{"$nulls":3},2,5,0,1,0]
["Hazelwood Northwest Middle","1605 Shackelford Rd","Florissant ",63031,{"$nulls":3},2,5,0,1,0]
["Hazelwood Southeast Middle","918 Prigge Rd","St. Louis",63138,{"$nulls":3},1,5,0,1,0]
["Hazelwood West Middle","12834 Missouri Bottom Rd","Hazelwood",63042,{"$nulls":3},3,5,0,1,0]
["Hazelwood Central High","15875 New Halls Ferry Rd","Florissant ",63031,{"$nulls":3},4,5,0,1,0]
["Hazelwood East High","11300 Dunn Rd","St. Louis",63138,{"$nulls":3},3,5,0,1,0]
["Hazelwood West High","1 Wildcat Ln","Hazelwood ",63042,{"$nulls":3},2,5,0,1,0]
["Hazelwood Administration (YLC/Galactic)","15955 New Halls Ferry Road","Florissant ",63031,null,null,1,null,2,0,1,0]
[]
[{"$nulls":5},"Hazelwood Monthly Regular Total ",{"$nulls":3},{"$f":"SUM(J142:J171)","v":0}]
[]
[{"$nulls":5},"Hazelwood Monthly Summer Total ",{"$nulls":5},{"$f":"SUM(L142:L171)","v":0}]
[]
[{"$nulls":5},"Hazelwood Annual Combined Total ",{"$nulls":5},{"$f":"((J173*10)+(L175*2))","v":0}]
[]
["Webster Groves School District "]
["Ambrose Family Center","222 E. Cedar Dr","Webster Groves",63119,null,1,null,null,1,0,1,0]
["Avery Elementary","909 N Bompart Ave","Webster Groves",63119,null,null,1,null,1,0,1,0]
["Bristol Elementary","20 Gray Ave","Webster Groves",63119,null,null,1,null,1,0,1,0]
["Clark Elementary","9130 Big Bend Blvd","Webster Groves",63119,null,1,null,null,1,0,1,0]
["Edgar Road Elementary","1131 Edgar Road","Webster Groves",63119,null,1,null,null,1,0,1,0]
["Hixson Middle School","630 S. Elm","Webster Groves",63119,null,1,null,null,1,0,1,0]
["Hudson Elementary","9825 Hudson Ave","Rock Hill",63119,null,1,null,null,1,0,1,0]
["Steger 6th Grade Center/Givens Elementary","701 N Rock Hill Rd","Rock Hill",63119,null,null,1,null,1,0,1,0]
["Webster Groves High School","100 Selma","Webster Groves",63119,{"$nulls":3},1,2,0,1,0]
[]
[{"$nulls":5},"Web. Groves Monthly Regular Total ",{"$nulls":3},{"$f":"SUM(J180:J188)","v":0}]
[]
[{"$nulls":5},"Web. Groves Monthly Summer Total ",{"$nulls":5},{"$f":"SUM(L180:L188)","v":0}]
[]
[{"$nulls":5},"Web. Groves Annual Combined Total ",{"$nulls":5},{"$f":"((J190*10)+(L192*2))","v":0}]
[]
[]
[{"$nulls":5},"Partnership Monthly Regular Total ",{"$nulls":3},{"$f":"(J51+J97+J117+J135+J173+J190)","v":0}]
[]
[{"$nulls":5},"Partnership Monthly Summer Total ",{"$nulls":5},{"$f":"SUM(L53+L99+L119+L137+L175+L192)","v":0}]
[]
[{"$nulls":5},"Partnership Annual Combined Total ",{"$nulls":5},{"$f":"((J197*10)+(L199*2))","v":0}]
[]
["Per Unit Cost of Recycling"]
[]
["Price increase or decrease of monthly charge for an increase / decrease of 1 day of weekly service:"]
[]
["Monthly cost to Increase or Decrease 2 yards per week:",null,{"v":0,"d":"$0.00"}]
[]
["Monthly cost to Increase or Decrease 4 yards per week:",null,{"v":0,"d":"$0.00"}]
[]
["Monthly cost to Increase or Decrease 6 yards per week:",null,{"v":0,"d":"$0.00"}]
[]
["Monthly cost to Increase or Decrease 8 yards per week:",null,{"v":0,"d":"$0.00"}]
[]
["Price per pull for called in extra pickups"]
[]
["2 Yard Extra Pickup:",{"v":0,"d":"$0.00"}]
[]
["4 Yard Extra Pickup:",{"v":0,"d":"$0.00"}]
[]
["6 Yard Extra Pickup:",{"v":0,"d":"$0.00"}]
[]
["8 Yard Extra Pickup:",{"v":0,"d":"$0.00"}]
[]
["Price per Unit for a Locking Mechanism "]
["2 Yard Container:",{"v":0,"d":"$0.00"}]
[]
["4 Yard Container:",{"v":0,"d":"$0.00"}]
[]
["6 Yard Container:",{"v":0,"d":"$0.00"}]
[]
["8 Yard Container:",{"v":0,"d":"$0.00"}]
[]
["Description of Student Engagement Activities:"]

{"sheet":"Composting Service","index":2,"n_rows":69,"n_cols":8,"rows_kept":69,"merged":[[0,2,0,3],[2,1,2,5],[5,1,5,6],[40,3,40,5],[43,1,43,6],[58,3,58,5],[62,1,62,3],[64,1,64,2],[68,2,71,6]]}
[null,"VENDOR NAME:"]
[]
[null,"Composting Hauling"]
[null,"Location Name","Address","City","Zip","Qty (65 gallon totes per day)","Monthly Cost per Service"]
[]
[null,"Parkway School District"]
[null,"ADMINISTRATION OFFICES","455 N WOODS MILL RD","CHESTERFIELD",63017,0,0]
[null,"BARRETTS ELEMENTARY","1780 CARMAN RD","MANCHESTER","63021-7169",3,0]
[null,"BELLERIVE ELEMENTARY","620 RUE DE FLEUR DR","CREVE COEUR","63141-7364",3,0]
[null,"CARMAN TRAILS ELEMENTARY","555 S WEIDMAN RD","MANCHESTER","63021-5729",3,0]
[null,"CENTRAL HIGH","369 N WOODS MILL RD","CHESTERFIELD","63017-3329",10,0]
[null,"CENTRAL MIDDLE","471 N WOODS MILL RD","CHESTERFIELD","63017-3327",7,0]
[null,"CLAYMONT ELEMENTARY","405 COUNTRY CLUB DR","BALLWIN","63011-2547",3,0]
[null,"CRAIG ELEMENTARY","1492 CRAIG RD","SAINT LOUIS","63146-4842",4,0]
[null,"EARLY CHILDHOOD CENTER","14605 CLAYTON RD","BALLWIN","63011-2656",0,0]
[null,"FERN RIDGE HIGH","13157 N OLIVE SPUR RD","CREVE COEUR","63141-6174",6,0]
[null,"GREEN TRAILS ELEMENTARY","170 PORTICO DR","CHESTERFIELD","63017-2206",3,0]
[null,"HANNA WOODS ELEMENTARY","720 HANNA RD","BALLWIN","63021-6746",4,0]
[null,"HENRY ELEMENTARY","700 HENRY AVE","BALLWIN","63011-2737",3,0]
[null,"HIGHCROFT RIDGE ELEMENTARY","15380 HIGHCROFT DR","CHESTERFIELD","63017-5435",3,0]
[null,"INSTRUCTIONAL SERVICES","12568 FEE FEE RD","SAINT LOUIS","63146-3863",0,0]
[null,"MASON RIDGE ELEMENTARY","715 S MASON RD","SAINT LOUIS","63141-8525",3,0]
[null,"MCKELVEY ELEMENTARY","1751 MCKELVEY RD","MARYLAND HEIGHTS","63043-2816",5,0]
[null,"NORTH HIGH","12860 FEE FEE RD","SAINT LOUIS","63146-4431",10,0]
[null,"NORTHEAST MIDDLE","181 COEUR DE VILLE DR","CREVE COEUR","63141-6602",7,0]
[null,"OAK BROOK ELEMENTARY","510 BIG BEND RD","BALLWIN","63021-6587",4,0]
[null,"OPERATIONS (PARKWAY SCHOOLS)","363 N WOODS MILL RD","CHESTERFIELD","63017-3329",0,0]
[null,"PIERREMONT ELEMENTARY","1215 DAUPHINE LN","MANCHESTER","63011-4119",3,0]
[null,"RIVER BEND ELEMENTARY","224 RIVER VALLEY DR","CHESTERFIELD","63017-2660",5,0]
[null,"ROSS ELEMENTARY","1150 ROSS AVE","SAINT LOUIS","63146-4524",4,0]
[null,"SHENANDOAH VALLEY ELEMENTARY","15399 APPALACHIAN TRL","CHESTERFIELD","63017-1939",4,0]
[null,"SORRENTO SPRINGS ELEMENTARY","390 TUMULTY DR","BALLWIN","63021-6439",3,0]
[null,"SOUTH HIGH","801 HANNA RD","MANCHESTER","63021-6771",13,0]
[null,"SOUTH MIDDLE","760 WOODS MILL RD","BALLWIN","63011-3654",6,0]
[null,"SOUTHWEST MIDDLE","701 WREN AVE","MANCHESTER","63021-4310",6,0]
[null,"TRANSPORTATION (PKWY SCHOOLS)","347 N WOODSMILL RD","Saint Louis","63146-3146",0,0]
[null,"WEST HIGH","14653 CLAYTON RD","CHESTERFIELD","63017-3017",11,0]
[null,"WEST MIDDLE","2312 BAXTER RD","CHESTERFIELD","63017-7721",4,0]
[null,"WREN HOLLOW ELEMENTARY","655 WREN AVE","MANCHESTER","63021-6663",3,0]
[]
[{"$nulls":3},"Parkway Schools Monthly Total ",null,null,{"$f":"SUM(G7:G39)","v":0}]
[]
[]
[null,"PATTONVILLE SCHOOL DISTRICT "]
[null,"Location Name","Address","City","Zip","Qty (65 gallon totes 3x weekly)","Monthly Cost per Service"]
[null,"Briarcrest Elementary","2900 Adie Rd","St Ann",63074,"1 3",0]
[null,"Bridgeway Elementary","11635 Oakbury Ct","Bridgeton",63044,"1 3",0]
[null,"Drummond Elementary","3721 St Bridget Ln","St. Ann",63074,"1 3",0]
[null,"Parkwood Elementary","3199 Parkwood Ln","Maryland Heights",63043,"1 3",0]
[null,"Remington Elementary","102 Fee Fee Road","Maryland Heights",63043,"1 3",0]
[null,"Rose Acres Elementary","2905 Rose Acres Ln","Maryland Heights",63043,"1 3",0]
[null,"Willow Brook Elementary","11022 Schuetz Rd","St. Louis",63146,"1 4",0]
[null,"Learning Center","11097 St. Charles Rock Rd","St. Ann",63074,"1 3",0]
[null,"Pattonville High School","2497 Creve Coeur Mill Rd","Maryland Heights",63043,"4 9",0]
[null,"Holman Middle School","11055 St. Charles Rock Rd","St. Ann",63074,"3 4",0]
[null,"Printing Building","115 Harding Ave","Maryland Heights",63043,0,0]
[null,"Pattonville Heights Middle ","195 Fee Fee Rd","Maryland Heights",63043,"1 8",0,"Pickups on Tuesday, Thursday and Saturday"]
[]
[{"$nulls":3},"Pattonville Schools Monthly Total",null,null,{"$f":"SUM(G46:G57)","v":0}]
[]
[{"$nulls":5},"Partnership Total",{"$f":"G41+G59","v":0}]
[]
[null,"Per Unit Cost of Composting"]
[]
[null,"Composting monthly cost for one 65 gallon tote per day month",null,{"v":0,"d":"$0.00"}]
[]
[]
[]
[null,"Description of Student Engagement Activities:"]

{"sheet":"E-Scrap Service","index":3,"n_rows":31,"n_cols":5,"rows_kept":31,"merged":[[0,2,0,5],[12,2,14,8],[16,2,16,5],[22,1,22,4]]}
[null,"VENDOR NAME:"]
[]
[null,"E-Scrap Service"]
[]
[null,"Cost for pickup service:",{"v":0,"d":"$0.00"}]
[]
[null,"Minimum quantity for free pickup service",{"v":0,"d":"0.00"},"lbs"]
[]
[null,"Cost for district delivered service:",{"v":0,"d":"$0.00"}]
[]
[null,"Minimum quantity for free pickup service:",{"v":0,"d":"0.00"},"lbs"]
[]
[null,"Rebate structure, if any (comment):"]
[]
[]
[]
[null,"Certifications of Vendor:"]
[]
[null,"Percentage of end market recycled material including all plastics:",{"v":0,"d":"0.00%"}]
[]
[]
[]
[null,"For volume estimates, Parkway school district alone estimates the following monthly volume:"]
[null,null,"Computers",319,"units"]
[null,null,"Projectors",27,"units"]
[null,null,"Boards",4,"units"]
[null,null,"Monitors",45,"units"]
[null,null,"Printers",25,"units"]
[null,null,"Peripherals",72,"boxes"]
[null,null,"Unboxes parts",47,"units"]
[null,null,"TVs",6,"units"]

{"sheet":"Document Destruction","index":4,"n_rows":110,"n_cols":10,"rows_kept":110,"merged":[[0,2,0,5],[2,1,2,9],[5,1,5,9],[42,5,42,8],[45,1,45,9],[59,5,59,8],[61,1,61,9],[92,5,92,8],[94,5,94,8],[97,1,97,3]]}
[null,"VENDOR NAME:"]
[]
[null,"Document Destruction"]
[null,"Location Name","Address","City","Zip","Console","65 gallon","96 Gallon","Service per month","Monthly Cost per Service"]
[]
[null,"Parkway School District (Off-Site)"]
[null,"ADMINISTRATION OFFICES","455 N WOODS MILL RD","CHESTERFIELD",63017,7,null,null,1,0]
[null,"BARRETTS ELEMENTARY","1780 CARMAN RD","MANCHESTER","63021-7169",null,1,null,1,0]
[null,"BELLERIVE ELEMENTARY","620 RUE DE FLEUR DR","CREVE COEUR","63141-7364",null,1,null,1,0]
[null,"CARMAN TRAILS ELEMENTARY","555 S WEIDMAN RD","MANCHESTER","63021-5729",null,1,null,1,0]
[null,"CENTRAL HIGH","369 N WOODS MILL RD","CHESTERFIELD","63017-3329",null,3,null,1,0]
[null,"CENTRAL MIDDLE","471 N WOODS MILL RD","CHESTERFIELD","63017-3327",null,2,null,1,0]
[null,"CLAYMONT ELEMENTARY","405 COUNTRY CLUB DR","BALLWIN","63011-2547",null,1,null,1,0]
[null,"CRAIG ELEMENTARY","1492 CRAIG RD","SAINT LOUIS","63146-4842",null,1,null,1,0]
[null,"EARLY CHILDHOOD CENTER","14605 CLAYTON RD","BALLWIN","63011-2656",null,3,null,1,0]
[null,"EARLY CHILDHOOD CENTER- North","12790 FEE FEE RD","SAINT LOUIS","63146-4431",1,null,null,1,0]
[null,"FERN RIDGE HIGH","13157 N OLIVE SPUR RD","CREVE COEUR","63141-6174",null,2,null,1,0]
[null,"GREEN TRAILS ELEMENTARY","170 PORTICO DR","CHESTERFIELD","63017-2206",null,1,null,1,0]
[null,"HANNA WOODS ELEMENTARY","720 HANNA RD","BALLWIN","63021-6746",null,1,null,1,0]
[null,"HENRY ELEMENTARY","700 HENRY AVE","BALLWIN","63011-2737",null,null,1,1,0]
[null,"HIGHCROFT RIDGE ELEMENTARY","15380 HIGHCROFT DR","CHESTERFIELD","63017-5435",null,1,null,1,0]
[null,"INSTRUCTIONAL SERVICES","12568 FEE FEE RD","SAINT LOUIS","63146-3863",null,null,3,1,0]
[null,"MASON RIDGE ELEMENTARY","715 S MASON RD","SAINT LOUIS","63141-8525",null,1,null,1,0]
[null,"MCKELVEY ELEMENTARY","1751 MCKELVEY RD","MARYLAND HEIGHTS","63043-2816",null,1,null,1,0]
[null,"NINES BUILDING","999 EXECUTIVE PARKWAY DR","CREVE COUER","63141-6174",null,1,null,1,0]
[null,"NORTH HIGH","12860 FEE FEE RD","SAINT LOUIS","63146-4431",null,3,null,1,0]
[null,"NORTHEAST MIDDLE","181 COEUR DE VILLE DR","CREVE COEUR","63141-6602",null,2,null,1,0]
[null,"OAK BROOK ELEMENTARY","510 BIG BEND RD","BALLWIN","63021-6587",null,1,null,1,0]
[null,"OPERATIONS (PARKWAY SCHOOLS)","363 N WOODS MILL RD","CHESTERFIELD","63017-3329",null,3,null,1,0]
[null,"PIERREMONT ELEMENTARY","1215 DAUPHINE LN","MANCHESTER","63011-4119",null,1,null,1,0]
[null,"RIVER BEND ELEMENTARY","224 RIVER VALLEY DR","CHESTERFIELD","63017-2660",null,1,null,1,0]
[null,"ROSS ELEMENTARY","1150 ROSS AVE","SAINT LOUIS","63146-4524",null,1,null,1,0]
[null,"SHENANDOAH VALLEY ELEMENTARY","15399 APPALACHIAN TRL","CHESTERFIELD","63017-1939",null,1,null,1,0]
[null,"SORRENTO SPRINGS ELEMENTARY","390 TUMULTY DR","BALLWIN","63021-6439",null,1,null,1,0]
[null,"SOUTH HIGH","801 HANNA RD","MANCHESTER","63021-6771",null,3,null,1,0]
[null,"SOUTH MIDDLE","760 WOODS MILL RD","BALLWIN","63011-3654",null,2,null,1,0]
[null,"SOUTHWEST MIDDLE","701 WREN AVE","MANCHESTER","63021-4310",null,2,null,1,0]
[null,"TRANSPORTATION (PKWY SCHOOLS)","347 N WOODSMILL RD","Saint Louis","63146-3146",null,1,null,1,0]
[null,"WEST HIGH","14653 CLAYTON RD","CHESTERFIELD","63017-3017",null,3,null,1,0]
[null,"WEST MIDDLE","2312 BAXTER RD","CHESTERFIELD","63017-7721",null,2,null,1,0]
[null,"WREN HOLLOW ELEMENTARY","655 WREN AVE","MANCHESTER","63021-6663",null,1,null,1,0]
[]
[{"$nulls":5},"Parkway Schools Total",{"$nulls":3},{"$f":"SUM(J7:J41)","v":0}]
[]
[]
[null,"PATTONVILLE SCHOOL DISTRICT (On-Site)"]
[null,"Briarcrest Elementary","2900 Adie Rd","St Ann",63074,1,null,null,1,0]
[null,"Bridgeway Elementary","11635 Oakbury Ct","Bridgeton",63044,1,null,null,1,0]
[null,"Drummond Elementary","3721 St Bridget Ln","St. Ann",63074,1,null,null,1,0]
[null,"Parkwood Elementary","3199 Parkwood Ln","Maryland Heights",63043,1,null,null,1,0]
[null,"Remington Elementary","102 Fee Fee Road","Maryland Heights",63043,1,null,null,1,0]
[null,"Rose Acres Elementary","2905 Rose Acres Ln","Maryland Heights",63043,1,null,null,1,0]
[null,"Willow Brook Elementary","11022 Schuetz Rd","St. Louis",63146,1,null,null,1,0]
[null,"Learning Center","11097 St. Charles Rock Rd","St. Ann",63074,1,null,null,1,0]
[null,"Pattonville High School","2497 Creve Coeur Mill Rd","Maryland Heights",63043,1,null,null,1,0]
[null,"Holman Middle School","11055 St. Charles Rock Rd","St. Ann",63074,1,null,null,1,0]
[null,"Printing Building","115 Harding Ave","Maryland Heights",63043,1,null,null,1,0]
[null,"Pattonville Heights Middle ","195 Fee Fee Rd","Maryland Heights",63043,1,null,null,1,0]
[]
[{"$nulls":5},"Pattonville Schools Total",{"$nulls":3},{"$f":"SUM(J47:J58)","v":0}]
[]
[null,"Hazelwood School District (Off-Site)"]
[null,"Armstrong Elementary","6255 Howdershell Rd","Hazelwood ",63042,1,null,null,1,0]
[null,"Arrowpoint Elementary","2017 Arrowpoint Dr","St. Louis",63138,1,null,null,1,0]
[null,"Barrington Elementary","15600 Old Halls Ferry Rd","Florissant ",63034,1,null,null,1,0]
[null,"Brown Elementary","3325 Chickory Creek Ln","Florissant ",63031,1,null,null,1,0]
[null,"Cold Water Elementary","1105 Wiethaupt Rd","Florissant ",63031,1,null,null,1,0]
[null,"Garrett Elementary","1400 Ville Rosa Ln","Hazelwood",63042,1,null,null,1,0]
[null,"Grannemann Elementary","2324 Redman Rd","St. Louis",63136,1,null,null,1,0]
[null,"Jamestown Elementary","13750 Old Jamestown Rd","Florissant ",63033,1,null,null,1,0]
[null,"Jana Elementary","405 Jana Dr","Florissant ",63031,1,null,null,1,0]
[null,"Jury Elementary","11950 Old Halls Ferry Rd","Florissant ",63033,1,null,null,1,0]
[null,"Keeven Elementary","11230 Old Halls Ferry Rd","Florissant ",63136,1,null,null,1,0]
[null,"Larimore Elementary","1025 Trampe Ln","St. Louis",63138,1,null,null,1,0]
[null,"Lawson Elementary","1830 Charbonier Rd","Florissant ",63031,1,null,null,1,0]
[null,"Lusher Elementary","2015 Mullanphy Rd","Florissant ",63031,1,null,null,1,0]
[null,"McCurdy Elementary","975 Lindsay Ln","Florissant ",63031,1,null,null,1,0]
[null,"McNair Elementary","585 Coachway Ln","Hazelwood",63042,1,null,null,1,0]
[null,"Russell Elementary","7350 Howdershell Rd","Hazelwood",63042,1,null,null,1,0]
[null,"Townsend Elementary","6645 Parker Rd","Florissant ",63033,1,null,null,1,0]
[null,"Twillman Elementary","11831 Bellfontaine Rd","St. Louis",63138,1,null,null,1,0]
[null,"Walker Elementary","1250 Humes Ln","Florissant ",63031,1,null,null,1,0]
[null,"Hazelwood Central Middle","13450 Old Jamestown Rd","Florissant ",63033,1,null,null,1,0]
[null,"Hazelwood East Middle","1865 Dunn Rd","St. Louis",63138,1,null,null,1,0]
[null,"Hazelwood North Middle","4420 Vaile Ave","Florissant ",63034,1,null,null,1,0]
[null,"Hazelwood Northwest Middle","1605 Shackelford Rd","Florissant ",63031,1,null,null,1,0]
[null,"Hazelwood Southeast Middle","918 Prigge Rd","St. Louis",63138,1,null,null,1,0]
[null,"Hazelwood West Middle","12834 Missouri Bottom Rd","Hazelwood",63042,1,null,null,1,0]
[null,"Hazelwood Central High","15875 New Halls Ferry Rd","Florissant ",63031,1,null,null,1,0]
[null,"Hazelwood East High","11300 Dunn Rd","St. Louis",63138,1,null,null,1,0]
[null,"Hazelwood West High","1 Wildcat Ln","Hazelwood ",63042,1,null,null,1,0]
[]
[{"$nulls":5},"Hazelwood Schools Total",{"$nulls":3},{"$f":"SUM(J63:J91)","v":0}]
[]
[{"$nulls":5},"Partnership  Total",{"$nulls":3},{"$f":"SUM(J43,J60,J93)","v":0}]
[]
[]
[null,"Per Unit Cost of Document Destruction"]
[]
[null,"Off-site Per pickup cost for one 65 gallon tote per month",null,{"v":0,"d":"$0.00"}]
[]
[null,"Off-site Per pickup cost for one console bin per month",null,{"v":0,"d":"$0.00"}]
[]
[null,"Off-site Document Purge cost per banker box",null,{"v":0,"d":"$0.00"}]
[]
[null,"On-site Per pickup cost for one 65 gallon tote per month",null,{"v":0,"d":"$0.00"}]
[]
[null,"On-site Per pickup cost for one console bin per month",null,{"v":0,"d":"$0.00"}]
[]
[null,"On-site Document Purge cost per banker box",null,{"v":0,"d":"$0.00"}]